[Event "*** Titled Tuesday Blitz"]
[Site "Chess.com"]
[Date "2020.05.05"]
[Round "9"]
[White "KaterynaLagno"]
[Black "CrushingKings"]
[Result "1-0"]
[WhiteElo "2604"]
[BlackElo "2459"]
[TimeControl "180+1"]
[EndTime "11:47:29 PDT"]
[Termination "KaterynaLagno won by checkmate"]

1. e4 {[%clk 0:03:00.9]} 1... c5 {[%clk 0:02:58.3]} 2. Nf3 {[%clk 0:03:00.2]}
2... e6 {[%clk 0:02:51.7]} 3. d4 {[%clk 0:02:59.9]} 3... cxd4 {[%clk 0:02:52.6]}
4. Nxd4 {[%clk 0:03:00.3]} 4... Nc6 {[%clk 0:02:53.1]} 5. Nc3 {[%clk 0:03:00.1]}
5... Qc7 {[%clk 0:02:52.4]} 6. Be3 {[%clk 0:02:58.5]} 6... a6 {[%clk 0:02:52.6]}
7. f4 {[%clk 0:02:51]} 7... b5 {[%clk 0:02:38.8]} 8. Qd2 {[%clk 0:02:33.6]} 8...
Bb7 {[%clk 0:02:38.5]} 9. O-O-O {[%clk 0:02:33.5]} 9... Nxd4 {[%clk 0:01:50.5]}
10. Qxd4 {[%clk 0:02:31.8]} 10... Nf6 {[%clk 0:01:48.3]} 11. e5 {[%clk
0:02:29.8]} 11... Nd5 {[%clk 0:01:48]} 12. Nxd5 {[%clk 0:02:27.2]} 12... Bxd5
{[%clk 0:01:48.9]} 13. Kb1 {[%clk 0:02:26.2]} 13... Qc6 {[%clk 0:01:38.1]} 14.
Qd2 {[%clk 0:02:24.1]} 14... a5 {[%clk 0:01:35.7]} 15. f5 {[%clk 0:02:23]} 15...
a4 {[%clk 0:01:30]} 16. fxe6 {[%clk 0:02:15.2]} 16... dxe6 {[%clk 0:01:28.4]}
17. Bd3 {[%clk 0:02:00.4]} 17... Bxg2 {[%clk 0:00:59.5]} 18. Rhg1 {[%clk
0:01:55.3]} 18... Bd5 {[%clk 0:00:59.6]} 19. Qf2 {[%clk 0:01:53.3]} 19... Rc8
{[%clk 0:00:47.5]} 20. Rdf1 {[%clk 0:01:38]} 20... Rc7 {[%clk 0:00:47.5]} 21.
Qe2 {[%clk 0:01:24.4]} 21... Rb7 {[%clk 0:00:46.5]} 22. h4 {[%clk 0:01:09.9]}
22... h5 {[%clk 0:00:22.4]} 23. Rg5 {[%clk 0:01:06.5]} 23... g6 {[%clk
0:00:21.5]} 24. Rgg1 {[%clk 0:00:57.9]} 24... Be7 {[%clk 0:00:20.5]} 25. Qf2
{[%clk 0:00:55.1]} 25... Bd8 {[%clk 0:00:13.2]} 26. Bd4 {[%clk 0:00:44.2]} 26...
Bb6 {[%clk 0:00:08.9]} 27. Qf6 {[%clk 0:00:37.4]} 27... Rg8 {[%clk 0:00:06.8]}
28. Bxb6 {[%clk 0:00:35.7]} 28... Qxb6 {[%clk 0:00:06.2]} 29. Bxg6 {[%clk
0:00:31.3]} 29... fxg6 {[%clk 0:00:06.3]} 30. Rxg6 {[%clk 0:00:31]} 30... Rxg6
{[%clk 0:00:06.3]} 31. Qf8+ {[%clk 0:00:30.5]} 31... Kd7 {[%clk 0:00:06.7]} 32.
Rf7+ {[%clk 0:00:29.9]} 32... Kc6 {[%clk 0:00:06.2]} 33. Qd6# {[%clk 0:00:30.5]}
1-0

[Event "*** Titled Tuesday Blitz"]
[Site "Chess.com"]
[Date "2020.05.05"]
[Round "9"]
[White "AndrewDGreen"]
[Black "dbrankovic68"]
[Result "0-1"]
[WhiteElo "2289"]
[BlackElo "2460"]
[TimeControl "180+1"]
[EndTime "11:47:32 PDT"]
[Termination "dbrankovic68 won on time"]

1. e4 {[%clk 0:03:00.9]} 1... c5 {[%clk 0:02:59.2]} 2. Nf3 {[%clk 0:03:00.7]}
2... Nc6 {[%clk 0:02:59.2]} 3. Bb5 {[%clk 0:03:00.4]} 3... g6 {[%clk 0:02:57.8]}
4. O-O {[%clk 0:02:58.5]} 4... Bg7 {[%clk 0:02:56.6]} 5. Nc3 {[%clk 0:02:58.2]}
5... Nd4 {[%clk 0:02:56.5]} 6. Bc4 {[%clk 0:02:51.5]} 6... e6 {[%clk 0:02:56.2]}
7. d3 {[%clk 0:02:46.5]} 7... Ne7 {[%clk 0:02:55.4]} 8. Nxd4 {[%clk 0:02:39.5]}
8... cxd4 {[%clk 0:02:54.9]} 9. Ne2 {[%clk 0:02:36.6]} 9... O-O {[%clk 0:02:55]}
10. Bb3 {[%clk 0:02:19.4]} 10... d5 {[%clk 0:02:54.1]} 11. f4 {[%clk 0:02:09.8]}
11... dxe4 {[%clk 0:02:53.4]} 12. dxe4 {[%clk 0:02:10.7]} 12... b6 {[%clk
0:02:51]} 13. e5 {[%clk 0:02:00.5]} 13... Ba6 {[%clk 0:02:48.9]} 14. Rf3 {[%clk
0:01:54.3]} 14... Nf5 {[%clk 0:02:46.2]} 15. g4 {[%clk 0:01:38.9]} 15... Bb7
{[%clk 0:02:06.8]} 16. Rh3 {[%clk 0:01:36.3]} 16... Ne3 {[%clk 0:01:51]} 17.
Bxe3 {[%clk 0:01:32.5]} 17... dxe3 {[%clk 0:01:51.2]} 18. Rxe3 {[%clk
0:00:40.9]} 18... Qh4 {[%clk 0:01:45.1]} 19. Nd4 {[%clk 0:00:21.1]} 19... Rfd8
{[%clk 0:01:30.9]} 20. c3 {[%clk 0:00:19.1]} 20... g5 {[%clk 0:01:19.5]} 21. f5
{[%clk 0:00:13.3]} 21... exf5 {[%clk 0:01:13.8]} 22. gxf5 {[%clk 0:00:12.8]}
22... Qf4 {[%clk 0:01:05.4]} 23. Qd2 {[%clk 0:00:06.8]} 23... Bxe5 {[%clk
0:00:58.4]} 24. Rf1 {[%clk 0:00:05.3]} 24... Qg4+ {[%clk 0:00:56.3]} 25. Kf2
{[%clk 0:00:02.7]} 25... Bxh2 {[%clk 0:00:42.4]} 26. Ke1 {[%clk 0:00:02.1]}
26... Bg3+ {[%clk 0:00:40]} 27. Rf2 {[%clk 0:00:01.3]} 27... Qh4 {[%clk
0:00:34.2]} 28. Kd1 {[%clk 0:00:01.2]} 28... Bxf2 {[%clk 0:00:33.6]} 29. Re7
{[%clk 0:00:01.4]} 29... Qg4+ {[%clk 0:00:30.3]} 30. Kc1 {[%clk 0:00:01.5]}
30... Rf8 {[%clk 0:00:28.3]} 0-1

[Event "*** Titled Tuesday Blitz"]
[Site "Chess.com"]
[Date "2020.05.05"]
[Round "9"]
[White "Kapibara_Warri0r"]
[Black "Leo_C"]
[Result "0-1"]
[WhiteElo "2097"]
[BlackElo "2261"]
[TimeControl "180+1"]
[EndTime "11:47:32 PDT"]
[Termination "Leo_C won by resignation"]

1. e4 {[%clk 0:03:00.9]} 1... c6 {[%clk 0:02:58.8]} 2. d4 {[%clk 0:02:59.8]}
2... d5 {[%clk 0:02:58.7]} 3. Nc3 {[%clk 0:02:59.7]} 3... dxe4 {[%clk
0:02:58.4]} 4. Nxe4 {[%clk 0:02:59.6]} 4... Nf6 {[%clk 0:02:58.5]} 5. Nxf6+
{[%clk 0:02:58.5]} 5... exf6 {[%clk 0:02:58.7]} 6. c3 {[%clk 0:02:53.8]} 6...
Bd6 {[%clk 0:02:57.9]} 7. Bd3 {[%clk 0:02:51.6]} 7... O-O {[%clk 0:02:57.5]} 8.
Qf3 {[%clk 0:02:50.5]} 8... Re8+ {[%clk 0:02:56.8]} 9. Ne2 {[%clk 0:02:50.2]}
9... Nd7 {[%clk 0:02:56.4]} 10. O-O {[%clk 0:02:48.6]} 10... Nf8 {[%clk
0:02:56.1]} 11. Ng3 {[%clk 0:02:45.9]} 11... Ng6 {[%clk 0:02:53.7]} 12. Nf5
{[%clk 0:02:43]} 12... Bf8 {[%clk 0:02:52.7]} 13. h4 {[%clk 0:02:29.5]} 13...
Be6 {[%clk 0:02:40.4]} 14. h5 {[%clk 0:02:25]} 14... Bd5 {[%clk 0:02:35.5]} 15.
Qg4 {[%clk 0:02:10.4]} 15... Ne7 {[%clk 0:02:33.9]} 16. c4 {[%clk 0:01:58.8]}
16... Be6 {[%clk 0:02:22.4]} 17. Nh6+ {[%clk 0:01:47]} 17... Kh8 {[%clk
0:02:18.6]} 18. Qxe6 {[%clk 0:01:44.4]} 18... fxe6 {[%clk 0:02:16]} 19. Nf7+
{[%clk 0:01:43.8]} 19... Kg8 {[%clk 0:02:16.9]} 20. Nxd8 {[%clk 0:01:43.9]}
20... Raxd8 {[%clk 0:02:17.8]} 21. Be3 {[%clk 0:01:43.6]} 21... e5 {[%clk
0:02:16.6]} 22. c5 {[%clk 0:01:27.2]} 22... exd4 {[%clk 0:02:15.8]} 23. Bc4+
{[%clk 0:01:24.2]} 23... Kh8 {[%clk 0:02:13.4]} 24. Bf7 {[%clk 0:01:17.7]} 24...
dxe3 {[%clk 0:02:12.6]} 25. Bxe8 {[%clk 0:01:17.5]} 25... Rxe8 {[%clk
0:02:13.5]} 26. fxe3 {[%clk 0:01:16.4]} 26... Nd5 {[%clk 0:02:13.6]} 27. Rae1
{[%clk 0:01:13.6]} 27... Bxc5 {[%clk 0:02:10.6]} 28. Rf3 {[%clk 0:01:05.3]}
28... Rxe3 {[%clk 0:02:05.5]} 29. Rfxe3 {[%clk 0:01:01.1]} 29... Bxe3+ {[%clk
0:02:05.7]} 30. Kh2 {[%clk 0:00:59.2]} 30... Kg8 {[%clk 0:02:05.7]} 31. g4
{[%clk 0:00:53.3]} 31... Kf7 {[%clk 0:02:05.5]} 32. Kg3 {[%clk 0:00:53]} 32...
g6 {[%clk 0:02:04.5]} 33. Kf3 {[%clk 0:00:49.6]} 33... gxh5 {[%clk 0:02:03.5]}
34. gxh5 {[%clk 0:00:50.5]} 34... f5 {[%clk 0:01:59.6]} 35. Rh1 {[%clk
0:00:45.7]} 35... h6 {[%clk 0:01:58.1]} 36. Rh2 {[%clk 0:00:43.8]} 36... Bc5
{[%clk 0:01:54.2]} 37. Rg2 {[%clk 0:00:40.6]} 37... Nf6 {[%clk 0:01:53.1]} 38.
Kf4 {[%clk 0:00:35.3]} 38... Nxh5+ {[%clk 0:01:48.1]} 39. Kxf5 {[%clk 0:00:35]}
39... Ng7+ {[%clk 0:01:48.3]} 40. Ke4 {[%clk 0:00:34.4]} 40... h5 {[%clk
0:01:48.1]} 41. Rg5 {[%clk 0:00:32.2]} 41... Be7 {[%clk 0:01:47.3]} 42. Ra5
{[%clk 0:00:30.7]} 42... a6 {[%clk 0:01:46.7]} 43. b3 {[%clk 0:00:30.1]} 43...
h4 {[%clk 0:01:46.5]} 44. Kf3 {[%clk 0:00:29.8]} 44... Ne6 {[%clk 0:01:45.1]}
45. Kg4 {[%clk 0:00:28.8]} 45... Ke8 {[%clk 0:01:44.9]} 46. Re5 {[%clk
0:00:24.9]} 46... Kd7 {[%clk 0:01:44.8]} 47. Re1 {[%clk 0:00:22.6]} 47... Nc5
{[%clk 0:01:41.3]} 48. Rd1+ {[%clk 0:00:21.5]} 48... Kc7 {[%clk 0:01:41.2]} 49.
Re1 {[%clk 0:00:20.5]} 49... Kd6 {[%clk 0:01:36.6]} 50. Rd1+ {[%clk 0:00:19.6]}
50... Ke6 {[%clk 0:01:36.8]} 51. Re1+ {[%clk 0:00:19.1]} 51... Kf7 {[%clk
0:01:37.1]} 52. Rf1+ {[%clk 0:00:19.3]} 52... Bf6 {[%clk 0:01:35.7]} 53. Rf5
{[%clk 0:00:17.7]} 53... Nd7 {[%clk 0:01:31.9]} 54. Rh5 {[%clk 0:00:16.6]} 54...
Ne5+ {[%clk 0:01:31.9]} 55. Kh3 {[%clk 0:00:16.6]} 55... Kg6 {[%clk 0:01:30.4]}
0-1

[Event "*** Titled Tuesday Blitz"]
[Site "Chess.com"]
[Date "2020.05.05"]
[Round "9"]
[White "Gahan-MG"]
[Black "Chessmatus"]
[Result "0-1"]
[WhiteElo "2593"]
[BlackElo "2411"]
[TimeControl "180+1"]
[EndTime "11:47:33 PDT"]
[Termination "Chessmatus won by resignation"]

1. e4 {[%clk 0:02:52]} 1... e5 {[%clk 0:02:59.3]} 2. Nf3 {[%clk 0:02:51.5]} 2...
Nc6 {[%clk 0:02:59.5]} 3. d4 {[%clk 0:02:51.4]} 3... exd4 {[%clk 0:02:57.6]} 4.
Nxd4 {[%clk 0:02:52.3]} 4... Nf6 {[%clk 0:02:57.9]} 5. Nc3 {[%clk 0:02:52.4]}
5... Bb4 {[%clk 0:02:56.9]} 6. Nxc6 {[%clk 0:02:52.9]} 6... bxc6 {[%clk
0:02:57.8]} 7. Bd3 {[%clk 0:02:53.8]} 7... d5 {[%clk 0:02:57.5]} 8. exd5 {[%clk
0:02:54.7]} 8... cxd5 {[%clk 0:02:58.4]} 9. O-O {[%clk 0:02:55.6]} 9... O-O
{[%clk 0:02:58.8]} 10. Bg5 {[%clk 0:02:56.3]} 10... c6 {[%clk 0:02:58.6]} 11.
Qf3 {[%clk 0:02:56.9]} 11... Bd6 {[%clk 0:02:57.5]} 12. Rae1 {[%clk 0:02:56.5]}
12... Rb8 {[%clk 0:02:51.1]} 13. b3 {[%clk 0:02:56]} 13... h6 {[%clk 0:02:43.1]}
14. Bxf6 {[%clk 0:02:55.5]} 14... Qxf6 {[%clk 0:02:42.9]} 15. Qxf6 {[%clk
0:02:56.1]} 15... gxf6 {[%clk 0:02:43.8]} 16. Ne2 {[%clk 0:02:56.8]} 16... Re8
{[%clk 0:02:20.5]} 17. Ng3 {[%clk 0:02:56.1]} 17... Be5 {[%clk 0:02:10.7]} 18.
Nh5 {[%clk 0:02:55.7]} 18... Bg4 {[%clk 0:02:05.8]} 19. Rxe5 {[%clk 0:02:55.2]}
19... fxe5 {[%clk 0:02:01.8]} 20. Nf6+ {[%clk 0:02:55.4]} 20... Kg7 {[%clk
0:02:00.2]} 21. Nxg4 {[%clk 0:02:56.3]} 21... e4 {[%clk 0:02:00.5]} 22. Be2
{[%clk 0:02:55]} 22... f5 {[%clk 0:02:00.9]} 23. Ne3 {[%clk 0:02:55.1]} 23... f4
{[%clk 0:01:59.8]} 24. Nf5+ {[%clk 0:02:54.4]} 24... Kg6 {[%clk 0:01:53.9]} 25.
Nd4 {[%clk 0:02:37.5]} 25... c5 {[%clk 0:01:53.3]} 26. Nc6 {[%clk 0:02:37.8]}
26... Rb7 {[%clk 0:01:16.9]} 27. c3 {[%clk 0:02:26.8]} 27... Rc7 {[%clk
0:01:14.3]} 28. Na5 {[%clk 0:02:26.5]} 28... d4 {[%clk 0:01:11.9]} 29. f3 {[%clk
0:02:18.6]} 29... d3 {[%clk 0:01:07.6]} 30. Bd1 {[%clk 0:02:14.7]} 30... e3
{[%clk 0:01:07.7]} 31. Re1 {[%clk 0:02:12.1]} 31... e2 {[%clk 0:01:07.8]} 32.
Nc4 {[%clk 0:02:09.1]} 32... exd1=Q {[%clk 0:01:01.4]} 33. Rxd1 {[%clk 0:02:10]}
33... Rce7 {[%clk 0:01:01.5]} 34. g3 {[%clk 0:01:56.7]} 34... Re1+ {[%clk
0:01:01.2]} 35. Rxe1 {[%clk 0:01:55.3]} 35... Rxe1+ {[%clk 0:01:02.1]} 36. Kf2
{[%clk 0:01:56.1]} 36... Re2+ {[%clk 0:01:02]} 37. Kf1 {[%clk 0:01:56.2]} 37...
Rxa2 {[%clk 0:01:01.9]} 38. gxf4 {[%clk 0:01:56.6]} 38... Kf5 {[%clk 0:00:58.4]}
39. Ne5 {[%clk 0:01:54.2]} 39... Kxf4 {[%clk 0:00:50.4]} 40. Nxd3+ {[%clk
0:01:53.4]} 40... Kxf3 {[%clk 0:00:50.7]} 41. Ne5+ {[%clk 0:01:45.4]} 41... Ke4
{[%clk 0:00:46.5]} 42. Ng4 {[%clk 0:01:43.5]} 42... Kd3 {[%clk 0:00:42.1]} 43.
b4 {[%clk 0:01:42.3]} 43... cxb4 {[%clk 0:00:37.9]} 44. cxb4 {[%clk 0:01:43.2]}
44... Kc4 {[%clk 0:00:38.2]} 45. h4 {[%clk 0:01:41.8]} 45... h5 {[%clk
0:00:34.5]} 46. Nf6 {[%clk 0:01:39.4]} 46... Kxb4 {[%clk 0:00:34.7]} 47. Nxh5
{[%clk 0:01:39.3]} 47... Rh2 {[%clk 0:00:34.8]} 48. Nf6 {[%clk 0:01:38.5]} 48...
Rxh4 {[%clk 0:00:35]} 49. Ke2 {[%clk 0:01:39.2]} 49... Rd4 {[%clk 0:00:33.2]}
50. Ke3 {[%clk 0:01:38.6]} 50... Rd8 {[%clk 0:00:32.9]} 51. Ng4 {[%clk
0:01:35.6]} 51... a5 {[%clk 0:00:32.3]} 52. Ne5 {[%clk 0:01:34.8]} 52... Kb3
{[%clk 0:00:31.7]} 53. Nc6 {[%clk 0:01:34.8]} 53... Rd5 {[%clk 0:00:25.9]} 54.
Ke4 {[%clk 0:01:34.8]} 54... Rh5 {[%clk 0:00:21.2]} 55. Kd3 {[%clk 0:01:33.2]}
55... a4 {[%clk 0:00:20.3]} 56. Kd2 {[%clk 0:01:33.4]} 56... Rc5 {[%clk
0:00:18.5]} 57. Nd4+ {[%clk 0:01:32.7]} 57... Kb2 {[%clk 0:00:18.8]} 58. Ne6
{[%clk 0:01:33.2]} 58... Rc4 {[%clk 0:00:18.6]} 59. Kd3 {[%clk 0:01:33]} 59...
Rc8 {[%clk 0:00:17.9]} 0-1

[Event "*** Titled Tuesday Blitz"]
[Site "Chess.com"]
[Date "2020.05.05"]
[Round "9"]
[White "XDPS"]
[Black "hansen"]
[Result "0-1"]
[WhiteElo "2720"]
[BlackElo "2939"]
[TimeControl "180+1"]
[EndTime "11:47:34 PDT"]
[Termination "hansen won by resignation"]

1. e4 {[%clk 0:02:59.6]} 1... c5 {[%clk 0:02:55.9]} 2. Nf3 {[%clk 0:02:59.6]}
2... e6 {[%clk 0:02:55.1]} 3. d4 {[%clk 0:02:54.8]} 3... cxd4 {[%clk 0:02:56]}
4. Nxd4 {[%clk 0:02:55.3]} 4... a6 {[%clk 0:02:51.1]} 5. Be2 {[%clk 0:02:55]}
5... Nf6 {[%clk 0:02:47.9]} 6. Nc3 {[%clk 0:02:54.7]} 6... Qc7 {[%clk
0:02:47.1]} 7. O-O {[%clk 0:02:54.1]} 7... Bb4 {[%clk 0:02:46.8]} 8. Qd3 {[%clk
0:02:53.5]} 8... Nc6 {[%clk 0:02:46.6]} 9. Nxc6 {[%clk 0:02:44.8]} 9... bxc6
{[%clk 0:02:47.5]} 10. f4 {[%clk 0:02:20.1]} 10... d5 {[%clk 0:02:45.3]} 11. e5
{[%clk 0:02:19]} 11... Nd7 {[%clk 0:02:45.3]} 12. Kh1 {[%clk 0:02:18.2]} 12...
h5 {[%clk 0:02:43.5]} 13. Qh3 {[%clk 0:02:08.9]} 13... g6 {[%clk 0:02:42.4]} 14.
Bd3 {[%clk 0:02:06.1]} 14... Be7 {[%clk 0:02:41.5]} 15. b3 {[%clk 0:01:59.4]}
15... Nc5 {[%clk 0:02:40.9]} 16. Bb2 {[%clk 0:01:40.7]} 16... a5 {[%clk
0:02:37.3]} 17. Be2 {[%clk 0:01:35.2]} 17... a4 {[%clk 0:02:36.9]} 18. Rab1
{[%clk 0:01:29.5]} 18... axb3 {[%clk 0:02:32.2]} 19. axb3 {[%clk 0:01:30.1]}
19... Ba6 {[%clk 0:02:16.6]} 20. Bxa6 {[%clk 0:01:27.6]} 20... Nxa6 {[%clk
0:02:14.7]} 21. Ne2 {[%clk 0:01:27.7]} 21... c5 {[%clk 0:02:11.5]} 22. Ra1
{[%clk 0:01:24]} 22... O-O {[%clk 0:02:09.8]} 23. g4 {[%clk 0:01:18.1]} 23...
hxg4 {[%clk 0:02:08.3]} 24. Qxg4 {[%clk 0:01:19]} 24... d4 {[%clk 0:02:07.5]}
25. Qg2 {[%clk 0:01:07.2]} 25... Qd7 {[%clk 0:01:54.8]} 26. Ng3 {[%clk
0:01:06.3]} 26... Nc7 {[%clk 0:01:52.8]} 27. Rad1 {[%clk 0:00:52.1]} 27... Qd5
{[%clk 0:01:28.9]} 28. Rf3 {[%clk 0:00:51.3]} 28... Ra2 {[%clk 0:01:28.2]} 29.
Bc1 {[%clk 0:00:51.2]} 29... Rxc2 {[%clk 0:01:27.7]} 30. Bd2 {[%clk 0:00:37.6]}
30... Bh4 {[%clk 0:01:10.1]} 31. f5 {[%clk 0:00:30.6]} 31... Bxg3 {[%clk
0:01:09.5]} 32. Qxg3 {[%clk 0:00:21.6]} 32... exf5 {[%clk 0:01:06.8]} 33. Kg1
{[%clk 0:00:21.9]} 33... Qe4 {[%clk 0:00:40.8]} 34. Qf2 {[%clk 0:00:14]} 34...
Ra8 {[%clk 0:00:31.6]} 35. Re1 {[%clk 0:00:14.2]} 35... Rxd2 {[%clk 0:00:25.7]}
0-1

[Event "*** Titled Tuesday Blitz"]
[Site "Chess.com"]
[Date "2020.05.05"]
[Round "9"]
[White "Witik"]
[Black "Konavets"]
[Result "1-0"]
[WhiteElo "2656"]
[BlackElo "2904"]
[TimeControl "180+1"]
[EndTime "11:47:34 PDT"]
[Termination "Witik won by resignation"]

1. d4 {[%clk 0:03:00.9]} 1... Nf6 {[%clk 0:02:19.7]} 2. c4 {[%clk 0:02:59.5]}
2... e6 {[%clk 0:02:19.8]} 3. Nf3 {[%clk 0:02:59.5]} 3... b6 {[%clk 0:02:12.4]}
4. g3 {[%clk 0:02:54.4]} 4... Ba6 {[%clk 0:02:12.7]} 5. b3 {[%clk 0:02:52.2]}
5... d5 {[%clk 0:02:12.9]} 6. Bg2 {[%clk 0:02:49.3]} 6... Be7 {[%clk 0:02:13.1]}
7. O-O {[%clk 0:02:47.5]} 7... O-O {[%clk 0:02:13.6]} 8. cxd5 {[%clk 0:02:45.1]}
8... exd5 {[%clk 0:02:13.4]} 9. Ne5 {[%clk 0:02:39.8]} 9... c5 {[%clk
0:02:12.7]} 10. Nc3 {[%clk 0:02:35.5]} 10... Re8 {[%clk 0:02:11.8]} 11. Bf4
{[%clk 0:02:11.3]} 11... Bb7 {[%clk 0:02:10.7]} 12. Rc1 {[%clk 0:02:01.2]} 12...
Na6 {[%clk 0:02:10.9]} 13. dxc5 {[%clk 0:01:57.9]} 13... Nxc5 {[%clk 0:02:09.3]}
14. Nb5 {[%clk 0:01:54.6]} 14... a6 {[%clk 0:02:08.9]} 15. Nd4 {[%clk
0:01:54.4]} 15... Rc8 {[%clk 0:02:08.9]} 16. Bh3 {[%clk 0:01:51.6]} 16... Rc7
{[%clk 0:02:04.4]} 17. b4 {[%clk 0:01:50.1]} 17... Nce4 {[%clk 0:02:02]} 18.
Nec6 {[%clk 0:01:49.7]} 18... Rxc6 {[%clk 0:01:59.5]} 19. Nxc6 {[%clk
0:01:48.9]} 19... Bxc6 {[%clk 0:01:59.7]} 20. Rxc6 {[%clk 0:01:49.5]} 20... Bxb4
{[%clk 0:02:00.6]} 21. Qa4 {[%clk 0:01:07.5]} 21... Bc5 {[%clk 0:01:54.7]} 22.
Qxa6 {[%clk 0:01:04.4]} 22... Nxf2 {[%clk 0:01:42.8]} 23. Rxf2 {[%clk
0:01:02.4]} 23... Ne4 {[%clk 0:01:43.2]} 24. Rxc5 {[%clk 0:00:22.7]} 24... Nxf2
{[%clk 0:01:43.1]} 25. Kxf2 {[%clk 0:00:22.3]} 25... bxc5 {[%clk 0:01:43.6]} 26.
Qc6 {[%clk 0:00:19.8]} 26... d4 {[%clk 0:01:41.8]} 27. Qxc5 {[%clk 0:00:15.9]}
27... d3 {[%clk 0:01:41.5]} 28. exd3 {[%clk 0:00:14]} 28... Qxd3 {[%clk
0:01:42.4]} 29. Bf1 {[%clk 0:00:14.2]} 29... Qe4 {[%clk 0:01:41.3]} 30. h4
{[%clk 0:00:10.5]} 30... Qh1 {[%clk 0:01:40.5]} 31. a4 {[%clk 0:00:08.3]} 31...
h6 {[%clk 0:01:39.3]} 32. a5 {[%clk 0:00:08.3]} 32... Qe4 {[%clk 0:01:38.4]} 33.
a6 {[%clk 0:00:07.9]} 33... Qb1 {[%clk 0:01:37.3]} 34. a7 {[%clk 0:00:07.9]}
34... Qa2+ {[%clk 0:01:37.7]} 35. Kg1 {[%clk 0:00:07.3]} 35... Qa1 {[%clk
0:01:36]} 36. Bb8 {[%clk 0:00:07.2]} 36... Re1 {[%clk 0:01:35]} 37. Qf2 {[%clk
0:00:06.9]} 37... Re7 {[%clk 0:01:27.9]} 38. Kg2 {[%clk 0:00:06.9]} 38... Qa5
{[%clk 0:01:23.6]} 39. Kh2 {[%clk 0:00:07.2]} 39... g5 {[%clk 0:00:59.2]} 40.
Bg2 {[%clk 0:00:07.2]} 40... Rxa7 {[%clk 0:00:58.8]} 41. Bxa7 {[%clk 0:00:07]}
41... gxh4 {[%clk 0:00:59.1]} 42. gxh4 {[%clk 0:00:07.5]} 42... h5 {[%clk
0:00:59.4]} 43. Be3 {[%clk 0:00:06.7]} 43... Qe5+ {[%clk 0:00:57.6]} 44. Qg3+
{[%clk 0:00:07.6]} 1-0

[Event "*** Titled Tuesday Blitz"]
[Site "Chess.com"]
[Date "2020.05.05"]
[Round "9"]
[White "ljuks68"]
[Black "Gennady_Kozlov"]
[Result "0-1"]
[WhiteElo "2385"]
[BlackElo "2593"]
[TimeControl "180+1"]
[EndTime "11:47:35 PDT"]
[Termination "Gennady_Kozlov won on time"]

1. e4 {[%clk 0:02:56.4]} 1... e6 {[%clk 0:02:57.2]} 2. d4 {[%clk 0:02:55.5]}
2... d5 {[%clk 0:02:52.9]} 3. Nc3 {[%clk 0:02:55.2]} 3... Nf6 {[%clk 0:02:52.4]}
4. Bg5 {[%clk 0:02:54.1]} 4... Be7 {[%clk 0:02:51.9]} 5. e5 {[%clk 0:02:54.2]}
5... Nfd7 {[%clk 0:02:51.6]} 6. h4 {[%clk 0:02:54.6]} 6... Nc6 {[%clk
0:02:50.9]} 7. Qg4 {[%clk 0:02:50.3]} 7... h5 {[%clk 0:02:50.1]} 8. Bxe7 {[%clk
0:02:41.8]} 8... hxg4 {[%clk 0:02:51]} 9. Bxd8 {[%clk 0:02:41.2]} 9... Kxd8
{[%clk 0:02:51.9]} 10. O-O-O {[%clk 0:02:37.7]} 10... f6 {[%clk 0:02:48.2]} 11.
exf6 {[%clk 0:02:34.1]} 11... gxf6 {[%clk 0:02:49.1]} 12. Be2 {[%clk 0:02:04.8]}
12... f5 {[%clk 0:02:45]} 13. f3 {[%clk 0:02:03.4]} 13... gxf3 {[%clk
0:02:37.7]} 14. gxf3 {[%clk 0:01:46.8]} 14... Nf6 {[%clk 0:02:38.6]} 15. Nh3
{[%clk 0:01:36.3]} 15... Bd7 {[%clk 0:02:35.8]} 16. Nf4 {[%clk 0:01:29.9]} 16...
Rh6 {[%clk 0:02:31.8]} 17. Rdg1 {[%clk 0:01:24.3]} 17... Nxd4 {[%clk 0:02:27.9]}
18. Rg7 {[%clk 0:01:18.9]} 18... e5 {[%clk 0:02:20.3]} 19. Ng6 {[%clk
0:01:01.7]} 19... e4 {[%clk 0:02:18.6]} 20. fxe4 {[%clk 0:00:57.6]} 20... Nxe4
{[%clk 0:02:14.4]} 21. Nxe4 {[%clk 0:00:23.9]} 21... Nxe2+ {[%clk 0:02:13.2]}
22. Kd2 {[%clk 0:00:22.4]} 22... fxe4 {[%clk 0:01:55.7]} 23. Kxe2 {[%clk
0:00:21.7]} 23... Be8 {[%clk 0:01:55.7]} 24. Ne5 {[%clk 0:00:18.1]} 24... Re6
{[%clk 0:01:53.6]} 25. Ng4 {[%clk 0:00:14.8]} 25... Bh5 {[%clk 0:01:43.2]} 26.
Rf1 {[%clk 0:00:08.8]} 26... b6 {[%clk 0:01:33.7]} 27. Rg5 {[%clk 0:00:08.6]}
27... Bxg4+ {[%clk 0:01:32.3]} 28. Rxg4 {[%clk 0:00:08.7]} 28... Kc8 {[%clk
0:01:33]} 29. Rg5 {[%clk 0:00:06.9]} 29... Rd6 {[%clk 0:01:31.3]} 30. Rf7 {[%clk
0:00:06.1]} 30... Kb7 {[%clk 0:01:30.6]} 31. h5 {[%clk 0:00:06.3]} 31... Rh8
{[%clk 0:01:28.9]} 32. Rg6 {[%clk 0:00:05.9]} 32... Rc6 {[%clk 0:01:21]} 33.
Rxc6 {[%clk 0:00:03.7]} 33... Kxc6 {[%clk 0:01:21]} 34. Rf5 {[%clk 0:00:04.2]}
34... Kd6 {[%clk 0:01:21.5]} 35. Ke3 {[%clk 0:00:03.9]} 35... Ke6 {[%clk
0:01:19.6]} 36. Rg5 {[%clk 0:00:04]} 36... Kf6 {[%clk 0:01:18.2]} 37. Rxd5
{[%clk 0:00:03.2]} 37... Ke6 {[%clk 0:01:13.3]} 38. Rg5 {[%clk 0:00:02.9]} 38...
Kf6 {[%clk 0:01:10.8]} 39. Rd5 {[%clk 0:00:02.4]} 39... c6 {[%clk 0:01:10.4]}
40. Rd6+ {[%clk 0:00:02.1]} 40... Ke5 {[%clk 0:01:03.5]} 41. Rd7 {[%clk
0:00:01.8]} 41... Rxh5 {[%clk 0:01:03.5]} 42. Re7+ {[%clk 0:00:02]} 42... Kd5
{[%clk 0:01:03.8]} 43. Rd7+ {[%clk 0:00:01.9]} 43... Kc5 {[%clk 0:01:01.8]} 44.
Kxe4 {[%clk 0:00:02]} 44... Rh3 {[%clk 0:01:00.6]} 0-1